bitfinex/quotes_BTCUSD_20240820
["timestamp","ask_amount","ask_price","bid_price","bid_amount"]
[1724170667911,0.66163077,59115.0,59114.0,0.43849017]
[1724170668112,0.85651497,59115.0,59114.0,0.43849017]
[1724170668484,0.81304842,59115.0,59114.0,0.43849017]
[1724170668862,0.81804842,59115.0,59114.0,0.43849017]
[1724170669069,0.81806305,59115.0,59114.0,0.43849017]
[1724170669274,0.78355372,59115.0,59114.0,0.43849017]
[1724170669475,0.78555372,59115.0,59114.0,0.43849017]
[1724170670056,0.78355372,59115.0,59114.0,0.43849017]
[1724170670274,0.63212144,59115.0,59114.0,0.43849017]
[1724170670500,0.67268194,59115.0,59114.0,0.43849017]
[1724170670718,0.86548401,59115.0,59114.0,0.43849017]
[1724170671332,0.8242653,59115.0,59114.0,0.43849017]
[1724170671537,0.13982144,59115.0,59114.0,0.43849017]
[1724170671744,0.14064244,59115.0,59114.0,0.43849017]
[1724170672355,0.14064244,59115.0,59114.0,1.02279017]
[1724170672561,0.14064244,59115.0,59114.0,1.02179017]
[1724170672562,0.011821,59115.0,59114.0,1.02179017]
[1724170672773,0.411821,59115.0,59114.0,1.02179017]
[1724170672972,0.46236414,59115.0,59114.0,1.02179017]
[1724170673175,0.45636414,59115.0,59114.0,1.02179017]
[1724170673402,0.45236414,59115.0,59114.0,1.02179017]
[1724170673815,0.45236414,59115.0,59114.0,1.45700145]
[1724170673816,0.001821,59115.0,59114.0,1.45700145]
[1724170674024,0.001821,59115.0,59114.0,1.41597957]
[1724170674231,0.001821,59115.0,59114.0,1.51597957]
[1724170674442,0.001821,59115.0,59114.0,1.15678017]
[1724170674844,0.001821,59115.0,59114.0,1.15578017]
[1724170675067,0.001821,59115.0,59114.0,1.12179017]
[1724170675479,0.001821,59115.0,59114.0,1.13679017]
[1724170675683,0.001821,59115.0,59114.0,1.13579017]
[1724170675923,0.08386516,59115.0,59114.0,0.45249017]
[1724170676331,0.07763571,59115.0,59114.0,0.45249017]
[1724170676698,0.07863571,59115.0,59114.0,0.45449017]
[1724170676905,0.07863571,59115.0,59114.0,0.45349017]
[1724170677127,0.07663571,59115.0,59114.0,0.43849017]
[1724170677528,0.07863571,59115.0,59114.0,0.44949017]
[1724170677874,0.07863571,59115.0,59114.0,0.43949017]
[1724170677875,0.07763571,59115.0,59114.0,0.43949017]
[1724170678049,0.07863571,59115.0,59114.0,0.44849017]
[1724170678373,0.07763571,59115.0,59114.0,0.43949017]
[1724170678582,0.08186516,59115.0,59114.0,0.43949017]
[1724170678714,0.08186516,59115.0,59114.0,0.44849017]
[1724170678917,0.08186516,59115.0,59114.0,0.43849017]
[1724170679116,0.07863571,59115.0,59114.0,0.44249017]
[1724170679492,0.002821,59115.0,59114.0,0.44349017]
[1724170679693,0.001821,59115.0,59114.0,0.79669017]
[1724170680089,0.002821,59115.0,59114.0,0.79869017]
[1724170680295,0.002821,59115.0,59114.0,1.38198957]
[1724170680520,0.002821,59115.0,59114.0,1.39098957]
[1724170680521,0.003821,59115.0,59114.0,1.39098957]
[1724170680678,0.001821,59115.0,59114.0,1.48198957]
[1724170681080,0.001821,59115.0,59114.0,1.49098957]
[1724170681081,0.002821,59115.0,59114.0,1.49098957]
[1724170682150,0.002821,59115.0,59114.0,1.52214359]
[1724170682315,0.002821,59115.0,59114.0,1.54514359]
[1724170682488,0.002821,59115.0,59114.0,1.56042941]
[1724170682961,0.001821,59115.0,59114.0,1.55842941]
[1724170683511,0.001821,59115.0,59114.0,1.55442941]
[1724170683897,0.001821,59115.0,59114.0,1.54542941]
[1724170684101,0.001821,59115.0,59114.0,1.54633251]
[1724170684302,0.001821,59115.0,59114.0,1.55311451]
[1724170685296,0.000821,59115.0,59114.0,1.54811451]
[1724170685486,0.001821,59115.0,59114.0,1.15047527]
[1724170685687,0.001821,59115.0,59114.0,1.15147527]
[1724170685918,0.001821,59115.0,59114.0,1.51067467]
[1724170686674,0.000821,59115.0,59114.0,1.48767467]
[1724170686942,0.000821,59115.0,59114.0,1.49567467]
[1724170687456,0.000821,59115.0,59114.0,1.49367527]
[1724170687657,0.000821,59115.0,59114.0,1.14047527]
[1724170687859,0.000821,59115.0,59114.0,0.56017527]
[1724170688208,0.000821,59115.0,59114.0,0.55917527]
[1724170688460,0.000821,59115.0,59114.0,0.56017527]
[1724170688661,0.000821,59115.0,59114.0,0.55917527]
[1724170689615,0.000821,59115.0,59114.0,0.91737527]
[1724170690464,0.000821,59115.0,59114.0,0.91637527]
[1724170690667,0.000821,59115.0,59114.0,0.91737527]
[1724170690877,0.000821,59115.0,59114.0,0.91937467]
[1724170691082,0.000821,59115.0,59114.0,1.51417467]
[1724170691292,0.000821,59115.0,59114.0,1.54816467]
[1724170692113,0.000821,59115.0,59114.0,1.54316467]
[1724170692796,0.000821,59115.0,59114.0,1.53516467]
[1724170692997,0.000821,59115.0,59114.0,1.17496527]
[1724170693204,0.000821,59115.0,59114.0,1.19796527]
[1724170693205,0.001821,59115.0,59114.0,1.19796527]
[1724170693636,0.000821,59115.0,59114.0,1.18996527]
[1724170693890,0.000821,59115.0,59114.0,1.54716527]
[1724170694137,0.001821,59115.0,59114.0,1.54316467]
[1724170694338,0.001821,59115.0,59114.0,1.55416467]
[1724170695396,0.000821,59115.0,59114.0,1.54616467]
[1724170695798,0.001821,59115.0,59114.0,1.55416467]
[1724170696044,0.001821,59115.0,59114.0,1.6844101]
[1724170696251,0.001821,59115.0,59114.0,1.55416467]
[1724170696470,0.001821,59115.0,59114.0,1.60657101]
[1724170696881,0.000821,59115.0,59114.0,1.61257101]
[1724170697084,0.000821,59115.0,59114.0,1.59857101]
[1724170697300,0.001821,59115.0,59114.0,1.60957101]
[1724170697519,0.001821,59115.0,59114.0,1.62357101]
[1724170697733,0.001821,59115.0,59114.0,1.60957101]
[1724170698161,0.001821,59115.0,59114.0,1.62357101]
[1724170698614,0.000821,59115.0,59114.0,1.61257101]
[1724170699041,0.001821,59115.0,59114.0,1.62357101]
[1724170699253,0.000821,59118.0,59114.0,1.78754979]
[1724170699459,0.000821,59118.0,59117.0,0.6282894]
[1724170699677,0.000821,59118.0,59117.0,0.7282894]
[1724170699880,0.000821,59118.0,59117.0,0.7512894]
[1724170700695,0.000821,59118.0,59117.0,0.7652894]
[1724170700870,0.000821,59118.0,59117.0,0.92926818]
[1724170701076,0.000821,59118.0,59117.0,0.97067452]
[1724170702067,0.63,59136.0,59134.0,0.0019994]
[1724170702068,0.43,59136.0,59134.0,0.0019994]
[1724170702279,0.00902001,59138.0,59136.0,0.0019994]
[1724170702673,0.00902001,59138.0,59136.0,0.1019994]
[1724170703044,0.00902001,59138.0,59137.0,0.0009994]
[1724170703247,0.00902001,59138.0,59137.0,1.18691263]
[1724170703450,0.00902001,59138.0,59137.0,1.17927957]
[1724170704669,0.00902001,59138.0,59137.0,1.15627957]
[1724170705070,0.00902001,59138.0,59137.0,1.16827957]
[1724170705340,0.00902001,59138.0,59137.0,0.58549009]
[1724170705544,0.01002001,59138.0,59137.0,0.55249017]
[1724170706293,0.00902001,59138.0,59137.0,0.57347957]
[1724170706826,0.00902001,59138.0,59137.0,0.58747957]
[1724170707225,0.01002001,59138.0,59137.0,0.58347957]
[1724170707446,0.01002001,59138.0,59137.0,0.59247957]
[1724170708072,0.01002001,59138.0,59137.0,0.59148017]
[1724170708288,0.01002001,59138.0,59137.0,0.54849017]
[1724170708729,0.00902001,59138.0,59137.0,0.54949017]
[1724170709147,0.01002001,59138.0,59137.0,0.55849017]
[1724170709503,0.00902001,59138.0,59137.0,0.54949017]
[1724170709908,0.00902001,59138.0,59137.0,0.44449017]
[1724170709909,0.71462001,59138.0,59137.0,0.44449017]
[1724170710120,0.85289601,59138.0,59137.0,0.32978664]
[1724170710268,1.07437633,59138.0,59137.0,0.33578664]
[1724170710470,0.97351136,59138.0,59137.0,0.33578664]
[1724170710720,1.24406436,59138.0,59137.0,0.33578664]
[1724170710921,0.97351136,59138.0,59137.0,0.33578664]
[1724170711132,0.97351136,59138.0,59137.0,0.32978664]
[1724170711543,0.97451136,59138.0,59137.0,0.33778664]
[1724170711714,1.23906436,59138.0,59137.0,0.32378664]
[1724170711920,1.53861736,59138.0,59137.0,0.32478664]
[1724170712298,1.30254594,59138.0,59137.0,0.32478664]
[1724170712779,1.29654594,59138.0,59137.0,0.32378664]
[1724170712996,1.30254594,59138.0,59137.0,0.32478664]
[1724170713217,1.30554594,59138.0,59137.0,0.32478664]
[1724170714069,1.56709894,59138.0,59137.0,0.32378664]
[1724170714282,1.29954594,59138.0,59137.0,0.32378664]
[1724170715341,1.64554594,59138.0,59137.0,0.32378664]
[1724170715545,1.30554594,59138.0,59137.0,0.32378664]
[1724170717198,1.57609894,59138.0,59137.0,0.32378664]
[1724170717399,1.86835516,59138.0,59137.0,0.1712556]
[1724170717601,1.86835516,59138.0,59137.0,0.0485556]
[1724170717602,2.0124643,59138.0,59137.0,0.0485556]
[1724170717804,2.1854643,59138.0,59137.0,0.0485556]
[1724170718023,2.3584643,59138.0,59137.0,0.0485556]
[1724170718621,2.6290173,59138.0,59137.0,0.0485556]
[1724170719502,2.6200173,59138.0,59137.0,0.0485556]
[1724170719675,2.6240173,59138.0,59137.0,0.0485556]
[1724170719894,2.6290173,59138.0,59137.0,0.0485556]
[1724170722099,2.6290173,59138.0,59114.0,0.0009031]
[1724170722100,0.63,59115.0,59114.0,0.0009031]
[1724170722305,0.70864878,59115.0,59114.0,1.9909031]
[1724170722479,0.633,59115.0,59114.0,1.9909031]
[1724170722664,0.96271959,59115.0,59114.0,1.9909031]
[1724170722859,0.96371959,59115.0,59114.0,1.9909031]
[1724170723264,1.17784884,59115.0,59114.0,1.9909031]
[1724170723724,1.17084884,59115.0,59114.0,1.9909031]
[1724170723943,1.17984884,59115.0,59114.0,1.9909031]
[1724170724285,1.17684884,59115.0,59114.0,1.9909031]
[1724170724497,1.17884884,59115.0,59114.0,1.9909031]
[1724170724710,1.21335455,59115.0,59114.0,1.9909031]
[1724170724917,1.07602555,59115.0,59114.0,1.9909031]
[1724170725120,1.07502555,59115.0,59114.0,1.9909031]
[1724170725322,1.17079,59115.0,59114.0,1.9909031]
[1724170725734,1.17879,59115.0,59114.0,1.9909031]
[1724170726361,1.07802555,59115.0,59114.0,1.9909031]
[1724170726593,1.07563397,59115.0,59114.0,1.9909031]
[1724170727606,1.1763472,59115.0,59114.0,1.9909031]
[1724170727812,1.07563397,59115.0,59114.0,1.9909031]
[1724170728422,0.9855,59115.0,59114.0,1.9909031]
[1724170728642,1.07740626,59115.0,59114.0,1.9909031]
[1724170728846,1.07940626,59115.0,59114.0,1.9909031]
[1724170729019,1.18011949,59115.0,59114.0,1.9909031]
[1724170729220,1.18014093,59115.0,59114.0,1.9909031]
[1724170730147,1.07940626,59115.0,59114.0,1.9909031]
[1724170730348,1.0786814,59115.0,59114.0,1.9909031]
[1724170730549,0.9875,59115.0,59114.0,1.9909031]
[1724170730760,1.06302538,59115.0,59114.0,1.9909031]
[1724170731194,1.0630247,59115.0,59114.0,1.9909031]
[1724170732150,1.1797091,59115.0,59114.0,1.9909031]
[1724170732366,1.562084,59115.0,59114.0,1.9909031]
[1724170732543,1.585084,59115.0,59114.0,1.9909031]
[1724170733095,1.720413,59115.0,59114.0,1.9909031]
[1724170733323,2.1264,59115.0,59114.0,1.9909031]
[1724170733508,2.26164725,59115.0,59114.0,1.58125576]
[1724170733728,2.2358545,59115.0,59114.0,1.58125576]
[1724170734155,2.36164215,59115.0,59114.0,1.58215886]
[1724170734359,1.27661212,59115.0,59114.0,1.58215886]
[1724170734568,1.0875,59115.0,59114.0,1.58215886]
[1724170734802,1.16295647,59115.0,59114.0,1.58215886]
[1724170735019,1.15795647,59115.0,59114.0,1.58215886]
[1724170735215,1.0875,59115.0,59114.0,1.58215886]
[1724170735419,1.0845,59115.0,59114.0,1.58215886]
[1724170735594,1.219829,59115.0,59114.0,1.58215886]
[1724170735804,1.29527023,59115.0,59114.0,1.58215886]
[1724170735957,1.83658623,59115.0,59114.0,1.58215886]
[1724170736158,1.86258623,59115.0,59114.0,1.58215886]
[1724170736366,2.13324423,59115.0,59114.0,1.58215886]
[1724170736978,2.13024423,59115.0,59114.0,1.58215886]
[1724170737193,1.56592823,59115.0,59114.0,1.58215886]
[1724170737405,1.490487,59115.0,59114.0,1.58215886]
[1724170737603,1.219829,59115.0,59114.0,1.58215886]
[1724170737808,1.27010629,59115.0,59114.0,1.58215886]
[1724170738056,1.490487,59115.0,59114.0,1.58215886]
[1724170738252,1.491487,59115.0,59114.0,1.58215886]
[1724170738457,1.54176226,59115.0,59114.0,1.58215886]
[1724170738689,1.88776226,59115.0,59114.0,1.58215886]
[1724170738884,1.837487,59115.0,59114.0,1.58215886]
[1724170739068,1.88776426,59115.0,59114.0,1.58215886]
[1724170739276,1.88976426,59115.0,59114.0,1.58215886]
[1724170740049,1.51610626,59115.0,59114.0,1.58215886]
[1724170740280,1.390987,59115.0,59114.0,1.58215886]
[1724170741844,1.393987,59115.0,59114.0,1.58215886]
[1724170742637,1.664645,59115.0,59114.0,1.58215886]
[1724170742849,2.021845,59115.0,59114.0,1.58215886]
[1724170743052,2.292503,59115.0,59114.0,1.58215886]
[1724170743208,2.661003,59115.0,59114.0,1.58215886]
[1724170743409,2.83305741,59115.0,59114.0,1.58215886]
[1724170743609,2.73242969,59115.0,59114.0,1.58215886]
[1724170744231,2.85812826,59115.0,59114.0,1.58215886]
[1724170744435,2.46177169,59115.0,59114.0,1.58215886]
[1724170744737,1.09794643,59115.0,59114.0,1.58215886]
[1724170745009,1.15785554,59115.0,59114.0,1.58215886]
[1724170745241,1.20813583,59115.0,59114.0,1.58215886]
[1724170746092,1.47879383,59115.0,59114.0,1.58215886]
[1724170746895,1.15485554,59115.0,59114.0,1.58215886]
[1724170747566,2.05637154,59115.0,59114.0,1.58215886]
[1724170747691,1.83599383,59115.0,59114.0,1.58215886]
[1724170748299,1.56535724,59115.0,59114.0,1.58215886]
[1724170749078,0.72282824,59115.0,59114.0,2.17675886]
[1724170749300,0.67252654,59115.0,59114.0,2.17675886]
[1724170751968,0.74815444,59115.0,59114.0,2.17675886]
[1724170752166,0.67252654,59115.0,59114.0,2.17675886]
[1724170752369,0.038,59115.0,59114.0,2.17675886]
[1724170752983,0.035,59115.0,59114.0,2.17675886]
[1724170753385,0.038,59115.0,59114.0,2.17675886]
[1724170753593,0.035,59115.0,59114.0,2.17675886]
[1724170753846,0.03,59115.0,59114.0,2.17675886]
[1724170754009,0.039,59115.0,59114.0,2.17675886]
[1724170754217,0.039,59115.0,59114.0,2.17775826]
[1724170754422,0.033,59115.0,59114.0,2.17775826]
[1724170754828,0.039,59115.0,59114.0,2.17775826]
[1724170755460,0.033,59115.0,59114.0,2.17775826]
[1724170756588,0.03,59115.0,59114.0,2.17775826]
[1724170756990,0.03,59115.0,59114.0,2.17875826]
[1724170757192,0.03,59115.0,59114.0,2.17775826]
[1724170757375,0.03,59115.0,59114.0,2.17675886]
[1724170757570,0.031,59115.0,59114.0,2.18275826]
[1724170757814,0.031,59115.0,59114.0,2.18375826]
[1724170758019,0.031,59115.0,59114.0,2.18275886]
[1724170758220,0.031821,59115.0,59114.0,2.18275886]
[1724170759510,0.08226912,59115.0,59114.0,2.18275886]
[1724170760253,0.031821,59115.0,59114.0,2.18275886]
[1724170762338,0.10776319,59115.0,59114.0,2.18275886]
[1724170763090,0.031821,59115.0,59114.0,2.18275886]
[1724170764211,0.08170226,59115.0,59114.0,1.58815886]
[1724170764413,0.1192389,59115.0,59114.0,1.58815886]
[1724170764613,0.6000679,59115.0,59114.0,1.58815886]
[1724170764765,1.01042812,59115.0,59114.0,1.58815886]
[1724170764969,1.65918739,59115.0,59114.0,1.58715886]
[1724170765396,1.65918739,59115.0,59114.0,1.27605432]
[1724170765397,1.93584539,59115.0,59114.0,1.27605432]
[1724170765598,1.93584539,59115.0,59114.0,0.13385432]
[1724170765774,1.93584539,59115.0,59114.0,1.07445432]
[1724170765775,1.92840212,59115.0,59114.0,1.07445432]
[1724170765988,1.92240212,59115.0,59114.0,1.07445432]
[1724170766344,1.87952086,59115.0,59114.0,1.07445432]
[1724170767090,1.87852086,59115.0,59114.0,1.06945432]
[1724170767747,3.05997886,59115.0,59088.0,0.49229154]
[1724170767898,1.938727,59101.0,59088.0,0.49229154]
[1724170768094,2.43436364,59101.0,59100.0,0.3273031]
[1724170768545,2.738027,59101.0,59100.0,0.3273031]
[1724170768915,2.77260552,59101.0,59100.0,0.3273031]
[1724170769342,2.385827,59101.0,59100.0,0.3273031]
[1724170769887,2.70884305,59101.0,59100.0,0.3273031]
[1724170770163,2.67426986,59101.0,59100.0,0.3273031]
[1724170771166,2.67726986,59101.0,59100.0,0.32720967]
[1724170773799,3.03446986,59101.0,59100.0,0.32720967]
[1724170773992,5.15126986,59101.0,59100.0,0.32720967]
[1724170774959,5.14626986,59101.0,59100.0,0.32720967]
[1724170775261,5.15126986,59101.0,59100.0,0.32720967]
[1724170775647,5.18582847,59101.0,59100.0,0.32720967]
[1724170775848,5.45155047,59101.0,59100.0,0.32720967]
[1724170776057,5.45655047,59101.0,59100.0,0.32720967]
[1724170776259,5.45355047,59101.0,59100.0,0.32720967]
[1724170776630,5.45655047,59101.0,59100.0,0.32720967]
[1724170776834,5.45355047,59101.0,59100.0,0.32720967]
[1724170777045,5.88605047,59101.0,59100.0,0.32720967]
[1724170777385,5.45155047,59101.0,59100.0,0.32720967]
[1724170777796,5.45655047,59101.0,59100.0,0.32720967]
[1724170778225,5.49968312,59101.0,59100.0,0.32720967]
[1724170779515,5.49668312,59101.0,59100.0,0.32720967]
[1724170779924,5.77040512,59101.0,59100.0,0.32720967]
[1724170780515,5.77040512,59101.0,59078.0,0.00082]
[1724170780516,1.852622,59083.0,59078.0,0.00082]
[1724170780677,3.426422,59083.0,59078.0,0.00082]
[1724170781602,2.798417,59083.0,59078.0,0.00082]
[1724170781756,2.803417,59083.0,59078.0,0.00082]
[1724170782762,2.626417,59083.0,59078.0,0.00082]
[1724170782995,2.897222,59083.0,59078.0,0.00082]
[1724170783194,3.100222,59083.0,59078.0,0.00082]
[1724170784524,2.765527,59083.0,59078.0,0.00082]
[1724170784726,2.592527,59083.0,59078.0,0.00082]
[1724170785090,2.61025527,59083.0,59078.0,0.00082]
[1724170785535,2.87606027,59083.0,59078.0,0.00082]
[1724170785715,2.88106027,59083.0,59078.0,0.00082]
[1724170786049,4.13436027,59083.0,59082.0,0.06772]
[1724170786488,4.13736027,59083.0,59082.0,0.06772]
[1724170787088,4.13236027,59083.0,59082.0,0.06772]
[1724170787266,4.12936027,59083.0,59082.0,0.06772]
[1724170787467,4.13736027,59083.0,59082.0,0.06772]
[1724170788099,4.13236027,59083.0,59082.0,0.06772]
[1724170788449,4.13736027,59083.0,59082.0,0.06772]
[1724170788897,5.83886027,59083.0,59082.0,0.06772]
[1724170789177,1.764349,59079.0,59078.0,0.00082]
[1724170789370,1.887349,59079.0,59078.0,0.00082]
[1724170789571,1.222726,59078.0,59077.0,1e-06]
[1724170789770,4.92462007,59078.0,59077.0,1e-06]
[1724170790585,1.853095,59060.0,59057.0,0.49229154]
[1724170790813,3.017395,59060.0,59057.0,0.49229154]
[1724170791011,3.355595,59060.0,59052.0,0.4131]
[1724170791760,3.626505,59060.0,59048.0,0.5987]
[1724170792158,3.631505,59060.0,59048.0,0.5987]
[1724170792366,3.631505,59060.0,59044.0,0.1856]
[1724170792617,3.631505,59060.0,59043.0,0.4131]
[1724170792618,3.68147736,59060.0,59043.0,0.4131]
[1724170792816,3.631505,59060.0,59043.0,0.4131]
[1724170793149,3.6690685,59060.0,59043.0,0.4131]
[1724170793348,3.67935626,59060.0,59043.0,0.4131]
[1724170793548,3.629505,59060.0,59043.0,0.4131]
[1724170793749,3.626505,59060.0,59043.0,0.4131]
[1724170794083,3.634505,59060.0,59043.0,0.4131]
[1724170794764,3.629505,59060.0,59043.0,0.4131]
[1724170794967,3.634505,59060.0,59043.0,0.4131]
[1724170796467,3.66905999,59060.0,59043.0,0.4131]
[1724170796674,1.494032,59059.0,59043.0,0.4131]
[1724170796892,1.617032,59059.0,59043.0,0.4131]
[1724170797508,1.65158981,59059.0,59043.0,0.4131]
[1724170798196,1.65658981,59059.0,59043.0,0.4131]
[1724170799130,1.65658981,59059.0,59058.0,0.00810811]
[1724170799567,1.65958981,59059.0,59058.0,0.00810811]
[1724170799977,1.494131,59055.0,59043.0,0.4131]
[1724170800177,1.65168881,59055.0,59043.0,0.4131]
[1724170800383,1.66942533,59055.0,59043.0,0.4131]
[1724170800586,1.66942533,59055.0,59042.0,0.009031]
[1724170800813,1.66942533,59055.0,59054.0,0.00496003]
[1724170801025,2.00882533,59055.0,59054.0,0.00496003]
[1724170801431,2.01382533,59055.0,59054.0,0.00496003]
[1724170802123,2.02580497,59055.0,59054.0,0.00496003]
[1724170802530,1.73187197,59055.0,59054.0,0.00496003]
[1724170802841,1.73487197,59055.0,59054.0,0.00496003]
[1724170803046,1.71713545,59055.0,59054.0,0.00496003]
[1724170803387,1.44620245,59055.0,59054.0,0.00496003]
[1724170803547,1.44620245,59055.0,59054.0,0.41516003]
[1724170804543,1.44120245,59055.0,59054.0,0.41516003]
[1724170804723,1.43820245,59055.0,59054.0,0.41516003]
[1724170804956,1.46120245,59055.0,59054.0,0.41516003]
[1724170805357,1.49620245,59055.0,59054.0,0.41516003]
[1724170805986,1.49920245,59055.0,59054.0,0.41516003]
[1724170806187,1.49920245,59055.0,59048.0,0.5563]
[1724170806188,1.853324,59049.0,59048.0,0.5563]
[1724170806390,1.91088181,59049.0,59048.0,0.5563]
[1724170806592,2.01088181,59049.0,59048.0,0.5563]
[1724170807416,2.01688181,59049.0,59048.0,0.5563]
[1724170807714,2.01988181,59049.0,59048.0,0.376]
[1724170808071,2.01988181,59049.0,59045.0,0.1875]
[1724170808072,1.223387,59046.0,59045.0,0.1875]
[1724170808192,1.223387,59046.0,59044.0,0.3917]
[1724170808193,0.952426,59045.0,59044.0,0.3917]
[1724170808401,1.582458,59043.0,59042.0,0.009031]
[1724170808641,2.68460381,59043.0,59042.0,0.009031]
[1724170808843,2.70760381,59043.0,59042.0,0.009031]
[1724170810141,2.71060381,59043.0,59042.0,0.009031]
[1724170810342,2.70760381,59043.0,59042.0,0.009031]
[1724170810518,2.97859181,59043.0,59042.0,0.009031]
[1724170810719,2.97859181,59043.0,59040.0,0.009031]
[1724170810720,1.223491,59041.0,59040.0,0.00585247]
[1724170810875,1.38104881,59041.0,59040.0,0.00585247]
[1724170812309,1.43382057,59041.0,59040.0,0.00585247]
[1724170812676,1.65504681,59041.0,59040.0,0.00585247]
[1724170812880,1.70481857,59041.0,59040.0,0.00585247]
[1724170813215,1.65504681,59041.0,59040.0,0.00585247]
[1724170813456,1.92604481,59041.0,59040.0,0.00585247]
[1724170813652,1.92604481,59041.0,59033.0,0.3979]
[1724170813653,1.494511,59040.0,59033.0,0.3979]
[1724170813825,1.92307081,59040.0,59031.0,0.0002]
[1724170814030,1.92307081,59040.0,59039.0,0.00417516]
[1724170814031,3.17937081,59040.0,59039.0,0.00417516]
[1724170815113,3.32868611,59040.0,59039.0,0.00417516]
[1724170815439,2.124714,59032.0,59031.0,0.0002]
[1724170815553,3.89577181,59032.0,59031.0,0.0002]
[1724170815757,1.582766,59024.0,59023.0,0.402]
[1724170816012,2.97907581,59024.0,59023.0,0.402]
[1724170816211,3.05416563,59024.0,59023.0,0.402]
[1724170816360,3.05416,59024.0,59023.0,0.402]
[1724170817312,2.783084,59024.0,59023.0,0.402]
[1724170817530,2.4008396,59024.0,59023.0,0.402]
[1724170818328,2.07672381,59024.0,59023.0,0.5903]
[1724170818733,1.44641139,59024.0,59023.0,0.5903]
[1724170818935,1.16223771,59024.0,59023.0,0.5903]
[1724170819133,0.7744,59024.0,59023.0,0.5903]
[1724170819347,0.03,59024.0,59023.0,0.5903]
[1724170819547,0.6,59024.0,59023.0,0.5903]
[1724170819699,0.603,59024.0,59023.0,0.5903]
[1724170819901,0.01774174,59030.0,59023.0,0.05985]
[1724170820223,0.003,59024.0,59022.0,0.3654]
[1724170820425,0.2,59028.0,59022.0,0.3654]
[1724170820676,0.4,59029.0,59023.0,0.3874]
[1724170821021,0.4,59029.0,59025.0,0.3874]
[1724170821384,0.4,59029.0,59022.0,0.3663994]
[1724170821385,0.01773876,59042.0,59034.0,0.3929]
[1724170821596,0.08003979,59050.0,59037.0,0.3938994]
[1724170821597,0.43,59050.0,59037.0,0.3938994]
[1724170821793,0.03,59044.0,59043.0,0.4058]
[1724170821994,0.03,59044.0,59043.0,0.4038]
[1724170822650,0.03,59044.0,59043.0,0.4018]
[1724170823108,0.032,59044.0,59043.0,0.4018]
[1724170823449,0.03,59044.0,59043.0,0.4018]
[1724170824008,0.03,59044.0,59043.0,0.5716]
[1724170824407,0.43,59044.0,59043.0,0.5716]
[1724170824637,0.565492,59044.0,59043.0,0.5716]
[1724170824839,1.11646,59044.0,59043.0,0.5716]
[1724170825161,1.26549979,59044.0,59043.0,0.3978]
[1724170825338,1.23646,59044.0,59043.0,0.3978]
[1724170825538,0.671492,59044.0,59043.0,0.3978]
[1724170825741,0.534,59044.0,59043.0,0.3978]
[1724170826219,0.671492,59044.0,59043.0,0.3978]
[1724170826630,1.21546,59044.0,59043.0,0.3978]
[1724170826831,1.21446,59044.0,59043.0,0.3978]
[1724170827212,0.631,59038.0,59037.0,0.387]
[1724170827424,1.036516,59038.0,59037.0,0.387]
[1724170828093,1.037516,59038.0,59037.0,0.387]
[1724170828289,1.038516,59038.0,59037.0,0.387]
[1724170828493,1.308527,59038.0,59037.0,0.387]
[1724170828631,1.037516,59038.0,59037.0,0.387]
[1724170828830,1.039516,59038.0,59037.0,0.387]
[1724170829228,0.632,59038.0,59037.0,0.387]
[1724170829428,0.768505,59038.0,59037.0,0.387]
[1724170829753,1.09179495,59038.0,59037.0,0.387]
[1724170830098,1.314527,59038.0,59037.0,0.387]
[1724170830314,0.769519,59032.0,59031.0,0.000822]
[1724170830517,1.80628436,59032.0,59031.0,0.000822]
[1724170830719,1.73852309,59032.0,59031.0,0.000822]
[1724170831525,1.77326309,59032.0,59031.0,0.000822]
[1724170832345,1.47622409,59032.0,59031.0,0.405522]
[1724170832544,1.17718296,59032.0,59031.0,0.405522]
[1724170833322,0.76862496,59032.0,59031.0,0.579322]
[1724170833546,0.80514396,59032.0,59031.0,0.579322]
[1724170833749,1.07618296,59032.0,59031.0,0.579322]
[1724170833953,0.80714396,59032.0,59031.0,0.579322]
[1724170834336,0.66962496,59032.0,59031.0,0.579322]
[1724170834536,0.80514396,59032.0,59031.0,0.579322]
[1724170834739,0.80714396,59032.0,59031.0,0.579322]
[1724170835001,0.63773787,59032.0,59031.0,0.579322]
[1724170835241,0.67161857,59032.0,59031.0,0.579322]
[1724170835445,0.63873787,59032.0,59031.0,0.579322]
[1724170835649,0.77425687,59032.0,59031.0,0.579322]
[1724170835852,1.17128693,59032.0,59031.0,0.405522]
[1724170836053,1.34921956,59032.0,59031.0,0.405522]
[1724170836181,1.07818056,59032.0,59031.0,0.405522]
[1724170836382,0.80614156,59032.0,59031.0,0.405522]
[1724170836786,1.07818056,59032.0,59031.0,0.405522]
[1724170836988,1.35121956,59032.0,59031.0,0.405522]
[1724170837434,1.3792693,59032.0,59031.0,0.405522]
[1724170837963,1.3762693,59032.0,59031.0,0.405522]
[1724170838196,1.07718056,59032.0,59031.0,0.405522]
[1724170838638,0.67162256,59032.0,59031.0,0.405522]
[1724170838887,0.80414156,59032.0,59031.0,0.405522]
[1724170839125,0.67062256,59032.0,59031.0,0.405522]
[1724170839333,0.67162256,59032.0,59031.0,0.405522]
[1724170839548,0.67062256,59032.0,59031.0,0.405522]
[1724170839803,0.63873787,59032.0,59031.0,0.405522]
[1724170840311,0.63673787,59032.0,59031.0,0.405522]
[1724170840901,0.63873787,59032.0,59031.0,0.405522]
[1724170841381,0.77325687,59032.0,59031.0,0.405522]
[1724170841587,1.31733487,59032.0,59031.0,0.405522]
[1724170841790,1.31633487,59032.0,59031.0,0.405522]
[1724170841996,1.34822191,59032.0,59031.0,0.405522]
[1724170842219,1.35022191,59032.0,59031.0,0.405522]
[1724170842826,1.35122191,59032.0,59031.0,0.405522]
[1724170842977,1.35222191,59032.0,59031.0,0.405522]
[1724170843588,1.22739571,59032.0,59031.0,0.405522]
[1724170843784,1.07818291,59032.0,59031.0,0.405522]
[1724170843984,1.07918291,59032.0,59031.0,0.405522]
[1724170844382,1.07718291,59032.0,59031.0,0.405522]
[1724170844585,1.07618291,59032.0,59031.0,0.405522]
[1724170844807,1.07818291,59032.0,59031.0,0.405522]
[1724170845224,1.07718291,59032.0,59031.0,0.405522]
[1724170845425,1.07818291,59032.0,59031.0,0.405522]
[1724170845602,0.80714391,59032.0,59031.0,0.405522]
[1724170846002,0.67162491,59032.0,59031.0,0.405522]
[1724170846204,0.63873787,59032.0,59031.0,0.405522]